bitfinex/quotes_ETHUSD_20241120
["timestamp","ask_amount","ask_price","bid_price","bid_amount"]
[1732145040001,0.36565844,3065.4,3064.8,3.26277]
[1732145040212,3.26217,3065.5,3064.9,3.26273]
[1732145040377,6.52437,3065.5,3065.0,0.8186]
[1732145040579,3.26217,3065.5,3065.0,0.8186]
[1732145041187,3.26253,3065.1,3064.6,0.8186]
[1732145041386,3.26222,3065.4,3064.6,4.08159]
[1732145041696,3.26246,3065.2,3064.6,4.08159]
[1732145041918,3.26233,3065.3,3064.7,3.26287]
[1732145042122,3.26233,3065.3,3064.6,4.816074]
[1732145042123,3.26222,3065.4,3064.6,4.08159]
[1732145042323,3.26203,3065.6,3064.7,0.408159]
[1732145042541,3.26203,3065.6,3064.8,4.05248]
[1732145042849,3.26223,3065.4,3064.8,4.05252]
[1732145043004,3.26232,3065.3,3064.8,0.7897]
[1732145043209,3.26244,3065.2,3064.8,0.7897]
[1732145043442,3.26271,3065.0,3064.4,0.7897]
[1732145044028,3.26253,3065.1,3064.4,0.7897]
[1732145044233,3.26281,3064.9,3064.4,0.7897]
[1732145044634,3.26298,3064.7,3064.0,0.8115]
[1732145044831,3.26314,3064.6,3064.0,4.07519]
[1732145045008,3.26314,3064.6,3064.0,0.8115]
[1732145045209,3.26314,3064.6,3064.1,0.46748272]
[1732145045705,3.26292,3064.8,3064.2,3.26347]
[1732145045948,3.26298,3064.7,3064.1,0.46748272]
[1732145046152,3.26347,3064.3,3064.0,0.8115]
[1732145046450,3.26347,3064.3,3063.7,0.8154]
[1732145046609,3.26347,3064.3,3063.8,0.33646463]
[1732145046811,0.03218214,3064.2,3063.8,0.33646463]
[1732145047019,3.26347,3064.3,3063.8,0.33646463]
[1732145047235,0.03218214,3064.2,3063.8,0.33646463]
[1732145047438,6.52693,3064.3,3063.8,0.33646463]
[1732145047610,0.03217279,3064.2,3063.7,0.8154]
[1732145047826,3.26355,3064.2,3063.7,4.07942]
[1732145048034,0.03216075,3064.1,3063.8,0.41800463]
[1732145048449,0.03216075,3064.1,3063.8,3.68184463]
[1732145048652,3.26318,3064.5,3064.0,3.2637]
[1732145048837,0.03219352,3064.4,3064.0,3.2637]
[1732145049022,3.26312,3064.6,3064.0,3.95826046]
[1732145049223,3.26318,3064.5,3064.0,3.95826046]
[1732145049426,3.26336,3064.4,3063.7,4.0794]
[1732145049641,3.26355,3064.2,3063.7,0.8154]
[1732145049841,3.26373,3064.0,3063.7,0.8154]
[1732145050043,3.26373,3064.0,3063.6,0.10062634]
[1732145050044,3.26393,3063.8,3063.6,0.10062634]
[1732145050219,3.2961366,3063.7,3063.6,0.10062634]
[1732145050661,0.0321166,3063.7,3063.6,0.10062634]
[1732145050873,3.2637,3064.0,3063.6,0.10062634]
[1732145051155,3.26394,3063.8,3063.6,0.10062634]
[1732145051651,0.03208722,3063.7,3063.6,0.10062634]
[1732145051819,3.26398,3063.8,3063.6,0.10062634]
[1732145052014,0.03208187,3063.7,3063.6,0.10062634]
[1732145052227,3.26398,3063.8,3063.6,0.10062634]
[1732145052433,0.03208187,3063.7,3063.6,0.10062634]
[1732145052628,3.26398,3063.8,3063.6,0.10062634]
[1732145052832,3.26402,3063.7,3063.6,0.10062634]
[1732145053061,3.29610187,3063.7,3063.6,0.10062634]
[1732145055445,0.03208187,3063.7,3063.6,0.10062634]
[1732145055616,3.26383,3063.9,3063.6,0.10062634]
[1732145055822,0.03209391,3063.8,3063.6,0.10062634]
[1732145056925,0.03209391,3063.8,3063.6,0.90412634]
[1732145057127,3.26366,3064.1,3063.6,4.16822634]
[1732145057323,0.0319984,3063.7,3063.6,4.58504897]
[1732145057527,3.26343,3064.3,3063.7,3.26399]
[1732145057823,0.03206261,3064.2,3063.8,3.7223239]
[1732145058027,4.07108,3064.7,3063.8,3.26383]
[1732145058270,0.03211075,3064.6,3064.2,4.08259]
[1732145058423,0.03211075,3064.6,3064.3,3.26337]
[1732145058623,4.04418,3064.9,3064.3,3.26337]
[1732145058863,0.03215885,3064.8,3064.2,1.227359]
[1732145059072,3.26265,3065.0,3064.5,3.26316]
[1732145059227,0.03214682,3064.7,3064.2,4.08251]
[1732145059431,3.26278,3064.9,3064.3,3.2633]
[1732145059644,0.03215885,3064.8,3064.2,4.490761]
[1732145059832,0.03215885,3064.8,3064.4,3.26326]
[1732145060339,0.03215885,3064.8,3064.2,0.8191]
[1732145060600,3.26319,3064.5,3064.2,0.8191]
[1732145060858,0.03215615,3064.4,3064.2,0.8191]
[1732145061164,3.29545615,3064.4,3063.9,0.8191]
[1732145061338,3.29545615,3064.4,3063.9,1.227392]
[1732145061544,3.26341,3064.3,3063.9,0.8191]
[1732145061735,3.29559411,3064.3,3063.6,3.36474634]
[1732145062854,3.26359,3064.2,3063.6,3.36474634]
[1732145063055,3.29573004,3064.1,3063.7,0.33647463]
[1732145063257,3.29573004,3064.1,3063.6,3.36474634]
[1732145063258,3.26402,3063.7,3063.6,0.10062634]
[1732145063428,0.03207188,3063.7,3063.6,3.36474634]
[1732145063638,3.2637,3064.0,3063.6,0.43710097]
[1732145063852,0.03207993,3063.9,3063.6,0.10062634]
[1732145064477,3.26369,3064.1,3063.6,3.36472634]
[1732145064650,0.03209197,3064.0,3063.8,3.26389]
[1732145064832,3.26343,3064.3,3063.8,3.26389]
[1732145065037,0.03212406,3064.2,3063.8,3.26389]
[1732145065239,3.26349,3064.2,3063.7,4.09472]
[1732145065448,0.03211136,3064.1,3063.7,4.09472]
[1732145066374,0.03211136,3064.1,3063.7,0.8307]
[1732145066546,0.03211136,3064.1,3063.7,4.12735718]
[1732145066741,0.03211136,3064.1,3063.8,0.45644561]
[1732145066969,3.26332,3064.4,3063.9,3.26375]
[1732145067168,0.03210667,3064.0,3063.9,3.26375]
[1732145067371,3.26332,3064.4,3063.9,3.26375]
[1732145067576,3.26313,3064.6,3063.9,4.04521156]
[1732145067774,0.03214278,3064.3,3063.9,4.04521156]
[1732145067971,3.26328,3064.4,3063.9,4.04521156]
[1732145068175,0.03212607,3064.2,3064.1,3.26357]
[1732145068376,4.03187,3065.0,3064.2,3.26348]
[1732145068685,3.26293,3064.8,3064.2,3.26343]
[1732145068886,3.26293,3064.8,3064.2,6.52686]
[1732145069185,0.03215617,3064.7,3064.3,3.26336]
[1732145069544,3.26293,3064.8,3064.3,3.26336]
[1732145069744,0.03214414,3064.6,3064.3,3.26336]
[1732145069941,3.26293,3064.8,3064.3,3.995939]
[1732145070141,0.03213211,3064.5,3064.2,3.26343]
[1732145070476,0.03212007,3064.4,3064.2,6.52684]
[1732145070675,3.26302,3064.7,3064.2,3.26341]
[1732145070987,3.26342,3064.3,3063.7,0.799]
[1732145071149,0.7692,3064.5,3064.0,3.2636]
[1732145071348,0.032096,3064.2,3064.1,3.26354]
[1732145071589,3.26307,3064.6,3064.1,3.26354]
[1732145071777,0.032096,3064.2,3064.1,3.26354]
[1732145072084,3.26297,3064.7,3064.2,4.06248]
[1732145072444,7.295,3064.8,3064.2,4.06248]
[1732145072672,4.03206,3064.8,3064.3,3.26332]
[1732145072875,4.03206,3064.8,3064.3,4.0317946]
[1732145073609,8.96,3065.3,3064.3,4.0317946]
[1732145073610,3.26246,3065.2,3064.4,0.03263065]
[1732145073900,3.26222,3065.4,3064.7,3.26286]
[1732145074192,3.26222,3065.4,3064.8,3.668936]
[1732145074351,3.26222,3065.4,3064.9,3.26272]
[1732145074546,0.7692,3065.6,3064.9,3.26274]
[1732145074743,4.0309,3065.9,3065.3,3.26231]
[1732145074943,4.03095,3065.9,3065.3,3.26231]
[1732145075147,4.03095,3065.9,3065.3,3.26225]
[1732145075370,4.03095,3065.9,3065.3,3.26224]
[1732145076005,0.7692,3065.9,3065.1,0.799]
[1732145076214,3.26199,3065.7,3065.1,0.799]
[1732145076413,3.26199,3065.7,3065.1,7.32392]
[1732145076758,0.7692,3065.9,3065.2,0.03262151]
[1732145077003,0.0316771,3065.6,3065.3,3.26224]
[1732145077202,0.7692,3065.9,3065.3,3.668364]
[1732145077367,0.03166508,3065.5,3065.3,3.668364]
[1732145077704,0.7692,3065.9,3065.4,3.2622]
[1732145077857,0.7692,3065.9,3065.4,3.26218]
[1732145078261,0.7692,3065.9,3065.4,3.2947997]
[1732145078488,0.79,3066.2,3065.7,3.26182]
[1732145078716,5.355474,3066.4,3065.8,3.26169]
[1732145078865,0.79,3066.4,3066.0,3.26155]
[1732145079215,0.8199,3066.7,3065.8,3.26179]
[1732145079438,3.26075,3066.8,3066.3,3.26125]
[1732145079641,4.08045,3067.0,3066.3,4.04216]
[1732145079825,0.408045,3066.9,3066.5,3.26098]
[1732145080028,4.08042,3067.0,3066.3,4.04222]
[1732145080345,4.08042,3067.0,3066.4,3.26107]
[1732145080748,3.2603,3067.2,3066.5,3.26104]
[1732145081046,4.07983,3067.6,3066.9,3.26055]
[1732145081348,4.07983,3067.6,3066.8,3.2607]
[1732145081349,3.26014,3067.4,3066.8,3.2607]
[1732145081498,0.407983,3067.5,3067.0,3.26045]
[1732145081701,3.668033,3067.5,3066.3,3.781]
[1732145081928,0.8199,3067.6,3066.9,0.781]
[1732145082132,4.07986,3067.6,3066.9,4.04153]
[1732145082403,3.25999,3067.5,3066.9,4.04153]
[1732145083003,3.26009,3067.4,3066.9,4.04153]
[1732145083521,3.2602,3067.3,3066.9,0.781]
[1732145083858,3.26039,3067.2,3066.4,3.26115]
[1732145084018,3.26039,3067.2,3066.6,3.26088]
[1732145084701,6.52078,3067.2,3066.6,3.26088]
[1732145084901,3.26039,3067.2,3066.6,6.52173]
[1732145085117,3.26014,3067.4,3066.8,3.26072]
[1732145085313,4.07983,3067.6,3066.9,3.26056]
[1732145085636,3.25998,3067.5,3066.9,3.586616]
[1732145085922,4.07983,3067.6,3066.9,3.26052]
[1732145086119,4.07983,3067.6,3066.9,4.03332]
[1732145086330,3.26005,3067.5,3066.9,4.03332]
[1732145086706,3.26009,3067.4,3066.7,3.26082]
[1732145087501,0.733988,3067.5,3066.9,3.26062]
[1732145087745,4.07982,3067.6,3066.9,3.26062]
[1732145087951,3.26017,3067.4,3066.7,3.26082]
[1732145088352,3.26017,3067.4,3066.8,3.2607]
[1732145088999,4.07982,3067.6,3066.8,0.652152]
[1732145089205,3.26001,3067.5,3066.9,3.26054]
[1732145089456,3.26001,3067.5,3066.9,3.912672]
[1732145089608,4.07982,3067.6,3067.1,3.2604]
[1732145090005,3.25968,3067.8,3067.2,3.26023]
[1732145090433,3.25977,3067.7,3067.2,3.26023]
[1732145090959,4.03125,3067.9,3067.3,3.26019]
[1732145091152,3.2595,3068.0,3067.3,3.26019]
[1732145091353,3.2595,3068.0,3067.5,3.25995]
[1732145091934,0.02949136,3067.9,3067.5,3.25995]
[1732145092147,3.28909136,3067.9,3067.3,3.26019]
[1732145092353,3.25996,3067.6,3067.1,0.7828]
[1732145092665,4.77217594,3068.1,3067.1,0.7828]
[1732145092666,3.28913935,3067.8,3067.1,0.7828]
[1732145092865,0.02944332,3067.5,3067.1,4.04315]
[1732145093034,3.25977,3067.7,3067.1,4.447465]
[1732145093566,0.02945533,3067.6,3067.1,1.187115]
[1732145093768,3.25976,3067.8,3067.1,0.7828]
[1732145093941,3.2599,3067.6,3067.1,4.0432]
[1732145094468,0.02932913,3067.5,3067.1,4.773576]
[1732145094621,0.02932913,3067.5,3067.4,3.26008]
[1732145094825,4.562527,3068.4,3067.7,3.25967]
[1732145094826,5.364127,3068.4,3067.7,3.25967]
[1732145095028,4.06068,3068.4,3067.8,3.585617]
[1732145095226,4.06068,3068.4,3067.8,3.25965]
[1732145095531,4.06068,3068.4,3067.7,4.01487]
[1732145095532,0.8016,3068.4,3067.9,3.25946]
[1732145095722,3.25885,3068.6,3067.9,3.660926]
[1732145095925,3.25885,3068.6,3067.9,3.25946]
[1732145096162,3.25885,3068.6,3068.1,3.25933]
[1732145096386,3.25866,3068.8,3068.1,3.25927]
[1732145096539,3.25841,3069.0,3068.3,3.25904]
[1732145097041,3.25841,3069.0,3068.5,3.2589]
[1732145097558,0.8016,3069.2,3068.5,3.25882]
[1732145097740,3.25862,3068.8,3068.3,3.25909]
[1732145097950,3.2584,3069.0,3068.2,0.7552]
[1732145098123,3.25903,3068.4,3067.9,0.7552]
[1732145098338,4.06061,3068.5,3067.9,0.7552]
[1732145098542,3.25871,3068.7,3067.9,4.01469]
[1732145098789,3.25871,3068.7,3068.1,3.25928]
[1732145099145,3.25879,3068.7,3068.1,3.25926]
[1732145099575,3.25879,3068.7,3068.2,3.25923]
[1732145099845,3.25852,3068.9,3068.2,3.25918]
[1732145100176,0.55,3069.0,3068.0,0.03258922]
[1732145100177,4.05994,3069.1,3068.5,0.7552]
[1732145100372,4.05951,3069.5,3068.6,0.4340003]
[1732145100573,7.31745,3069.5,3068.8,3.25852]
[1732145100809,7.31745,3069.5,3068.5,0.7552]
[1732145100810,1.57320944,3069.5,3068.5,0.7552]
[1732145101088,3.25857,3068.9,3068.5,0.7552]
[1732145101641,0.71114594,3069.4,3068.5,0.7552]
[1732145101876,3.2587,3068.7,3067.6,3.25984]
[1732145102096,3.25923,3068.3,3067.7,0.7552]
[1732145102391,3.25918,3068.3,3067.7,0.7552]
[1732145102572,3.25918,3068.3,3067.7,4.01496]
[1732145102755,3.25918,3068.3,3067.8,0.401496]
[1732145102942,3.25897,3068.5,3067.8,3.661126]
[1732145103144,6.51796,3068.5,3067.9,3.25949]
[1732145103381,3.25897,3068.5,3067.9,3.25949]
[1732145103589,3.80875,3068.7,3067.9,3.25949]
[1732145103590,3.25882,3068.6,3068.0,3.25941]
[1732145104202,3.25875,3068.7,3067.9,0.4416186]
[1732145104406,6.51709,3068.9,3068.3,0.8181]
[1732145104553,3.25852,3068.9,3068.3,4.07722]
[1732145104748,6.5171,3068.9,3068.3,4.07722]
[1732145104947,3.25852,3068.9,3068.3,4.07722]
[1732145105477,3.25852,3068.9,3067.9,3.25948]
[1732145105478,3.25871,3068.7,3067.9,3.25948]
[1732145105790,0.8251,3068.8,3068.0,0.8181]
[1732145106034,3.25893,3068.5,3068.0,0.8181]
[1732145106446,3.25871,3068.7,3068.2,3.25922]
[1732145106652,3.25888,3068.6,3068.0,4.07753]
[1732145106937,3.28867002,3068.5,3068.0,4.07753]
[1732145107140,3.28867002,3068.5,3068.0,1.551814]
[1732145107318,3.25919,3068.3,3068.0,0.8181]
[1732145107728,0.029714,3068.2,3068.0,0.8181]
[1732145108192,4.08402,3068.5,3068.0,0.8181]
[1732145108193,3.25921,3068.3,3068.0,0.8181]
[1732145108393,3.289042,3068.1,3067.7,0.8181]
[1732145108594,3.25934,3068.1,3067.7,0.8181]
[1732145108813,0.02968999,3068.0,3067.7,0.8181]
[1732145109210,3.25957,3067.9,3067.7,0.8181]
[1732145109549,0.02966598,3067.8,3067.7,0.8181]
[1732145109912,3.25946,3068.0,3067.7,0.8181]
[1732145110112,0.02967799,3067.9,3067.7,0.8181]
[1732145112243,0.02967799,3067.9,3067.7,1.225902]
[1732145112431,0.02967799,3067.9,3067.7,0.8181]
[1732145112622,3.25937,3068.1,3067.7,0.8181]
[1732145112851,0.0295399,3067.8,3067.7,0.8181]
[1732145113055,4.08408,3068.5,3067.8,3.2596]
[1732145113259,3.25898,3068.5,3068.0,0.7747]
[1732145113465,3.25898,3068.5,3068.0,7.29346]
[1732145113629,3.25883,3068.6,3068.0,4.03408]
[1732145113808,3.25854,3068.9,3068.2,3.25913]
[1732145114010,3.25866,3068.8,3068.2,3.25913]
[1732145114216,3.25866,3068.8,3068.3,3.2591]
[1732145114445,3.2584,3069.0,3068.5,0.7747]
[1732145114764,3.25855,3068.9,3068.5,0.7747]
[1732145114926,3.25865,3068.8,3068.5,0.7747]
[1732145115474,3.25855,3068.9,3068.5,0.7747]
[1732145115761,3.25871,3068.7,3068.5,0.7747]
[1732145116339,3.25913,3068.3,3067.9,0.7678]
[1732145117121,3.25876,3068.7,3068.0,3.25935]
[1732145117327,3.25888,3068.6,3068.1,3.662045]
[1732145117536,3.25888,3068.6,3068.1,3.25928]
[1732145117824,3.25872,3068.7,3068.2,3.25923]
[1732145118173,3.25861,3068.8,3068.2,3.25923]
[1732145118174,4.00951,3069.0,3068.3,3.2591]
[1732145118471,3.25829,3069.1,3068.6,3.25873]
[1732145118678,3.25837,3069.1,3068.7,0.651757]
[1732145118969,3.25837,3069.1,3068.5,3.25886]
[1732145119154,0.7511,3069.4,3068.4,0.7678]
[1732145119155,3.25845,3069.0,3068.4,0.7678]
[1732145119364,3.25861,3068.8,3068.4,4.02682]
[1732145119523,3.25823,3069.2,3068.5,3.25881]
[1732145119836,3.25841,3069.0,3068.5,3.25881]
[1732145120046,3.34611267,3069.3,3068.4,0.7678]
[1732145120294,3.25887,3068.6,3068.4,0.7678]
[1732145121090,3.25892,3068.5,3068.4,0.7678]
[1732145121294,3.25877,3068.7,3068.4,0.7678]
[1732145121986,3.29353995,3068.6,3068.4,0.7678]
[1732145123040,0.03472995,3068.6,3068.4,0.7678]
[1732145123239,0.03472995,3068.6,3068.4,1.170486]
[1732145123446,6.51692,3069.0,3068.5,3.29150587]
[1732145123674,0.7511,3069.4,3068.6,0.7583]
[1732145123675,3.25803,3069.4,3068.6,0.7583]
[1732145123879,3.25803,3069.4,3068.2,0.01]
[1732145123880,4.09203,3068.3,3068.2,0.03257996]
[1732145124199,3.25977,3067.7,3067.6,0.7583]
[1732145124503,3.25977,3067.7,3066.8,5.98569654]
[1732145124504,3.26006,3067.5,3067.2,0.7583]
[1732145124639,3.26019,3067.3,3067.2,0.7583]
[1732145124842,4.27569874,3067.5,3067.2,0.7583]
[1732145125044,1.01565874,3067.5,3067.2,0.7583]
[1732145125360,3.25956,3067.9,3067.2,4.01859]
[1732145125557,3.25956,3067.9,3067.3,3.662029]
[1732145126170,3.2593,3068.2,3067.4,3.26008]
[1732145126458,6.51863,3068.2,3067.5,4.04917]
[1732145126661,3.2593,3068.2,3067.5,4.04917]
[1732145126841,6.51819,3068.4,3067.9,0.7893]
[1732145127165,3.25908,3068.4,3067.9,0.7893]
[1732145128566,3.25887,3068.6,3067.9,4.04885]
[1732145128885,3.25896,3068.5,3067.9,4.04885]
[1732145129284,3.25903,3068.4,3067.9,0.7893]
[1732145129454,3.25924,3068.2,3067.9,0.7893]
[1732145130055,6.51815,3068.4,3067.9,0.7893]
[1732145130299,3.25903,3068.4,3067.9,0.7893]
[1732145130800,3.25887,3068.6,3068.0,3.25942]
[1732145130999,3.2592,3068.3,3067.9,0.7893]
[1732145131383,6.51841,3068.3,3067.9,0.7893]
[1732145131591,6.51843,3068.3,3067.9,0.7893]
[1732145132184,3.25962,3067.9,3067.6,0.8054]
[1732145132473,3.25962,3067.9,3066.8,1.36251327]
[1732145132474,3.26005,3067.5,3067.2,0.8054]
[1732145132689,3.26009,3067.4,3067.2,0.8054]
[1732145133004,3.26019,3067.3,3067.2,0.8054]
[1732145133511,3.25986,3067.7,3067.0,3.26041]
[1732145133803,3.26,3067.5,3067.1,0.8054]
[1732145134362,3.2601,3067.4,3067.1,0.8054]
[1732145134613,3.26,3067.5,3067.1,0.8054]
[1732145134614,6.52006,3067.5,3067.1,0.8054]
[1732145134762,3.26014,3067.4,3067.1,0.8054]
[1732145134963,3.26,3067.5,3067.1,0.8054]
[1732145134964,0.7748,3067.8,3067.1,0.8054]
[1732145135158,3.26027,3067.3,3067.1,0.8054]
[1732145136025,3.2601,3067.4,3067.1,0.8054]
[1732145136579,3.25991,3067.6,3067.1,4.06579]
[1732145137011,0.0559625,3067.5,3067.1,0.8054]
[1732145137224,0.0559625,3067.5,3067.1,4.06578]
[1732145137815,0.0559625,3067.5,3067.1,0.8054]
[1732145138026,0.38754975,3067.5,3066.7,3.2608]
[1732145138353,3.2601,3067.4,3066.9,3.26056]
[1732145138481,3.2601,3067.4,3066.9,3.586616]
[1732145138683,3.31603266,3067.4,3066.9,3.26056]
[1732145139295,3.31603266,3067.4,3066.8,0.8310024]
[1732145139594,0.05593266,3067.4,3067.0,3.2605]
[1732145139802,0.05593266,3067.4,3067.3,4.05859]
[1732145140003,3.25956,3067.9,3067.3,4.05859]
[1732145140398,0.05172618,3067.8,3067.3,4.05859]
[1732145142036,0.05172618,3067.8,3067.4,0.03259587]
[1732145142342,0.05172618,3067.8,3067.7,0.7984]
[1732145142652,3.25919,3068.3,3067.7,0.7984]
[1732145142810,3.25919,3068.3,3067.7,4.05811]
[1732145143214,3.25919,3068.3,3067.8,3.25964]
[1732145143600,3.25925,3068.2,3067.7,0.7984]
[1732145143898,3.25925,3068.2,3067.7,4.05816]
[1732145144142,3.25946,3068.0,3067.7,0.7984]
[1732145144447,3.25937,3068.1,3067.7,0.7984]
[1732145144649,0.70083291,3068.1,3067.7,0.7984]
[1732145144942,0.48970909,3068.0,3067.5,0.8231]
[1732145145110,3.25957,3067.9,3067.5,0.8231]
[1732145147497,0.48970909,3068.0,3067.5,0.8231]
[1732145147692,0.55,3068.5,3067.5,0.85569594]
[1732145147936,3.25924,3068.2,3067.6,6.51958]
[1732145148139,3.25922,3068.3,3067.6,3.25977]
[1732145148400,3.25922,3068.3,3067.8,3.25966]
[1732145148848,3.74862909,3068.5,3067.8,3.25966]
[1732145149045,3.74862909,3068.5,3068.0,3.25939]
[1732145149255,0.48970909,3068.5,3068.1,3.25932]
[1732145149727,0.48970909,3068.5,3068.0,3.25939]
[1732145149903,0.48970909,3068.5,3068.1,3.25933]
[1732145150103,3.74862909,3068.5,3068.0,3.25939]
[1732145150942,3.74862909,3068.5,3068.0,6.51875]
[1732145151185,3.74862909,3068.5,3068.0,3.25936]
[1732145151479,0.48970909,3068.5,3067.9,4.08434]
[1732145151783,0.48970909,3068.5,3068.1,3.25932]
[1732145151962,0.03897818,3068.4,3068.1,3.25932]
[1732145152535,0.03897818,3068.4,3067.9,4.0843]
[1732145152735,0.03897818,3068.4,3067.9,0.8248]
[1732145152736,3.25926,3068.2,3067.9,0.8248]
[1732145152934,0.48970909,3068.1,3067.9,0.8248]
[1732145153183,0.53506065,3068.1,3067.9,0.8248]
[1732145154842,0.04535156,3068.1,3067.9,0.8248]
[1732145155043,3.25922,3068.3,3067.9,0.8248]
[1732145155288,0.04747629,3068.0,3067.9,4.08435]
[1732145155782,3.25898,3068.5,3067.9,4.08435]
[1732145156086,0.04747629,3068.0,3067.9,4.08435]
[1732145156256,3.25897,3068.5,3067.9,4.492785]
[1732145156464,0.04747629,3068.0,3067.9,4.08435]
[1732145156975,3.25903,3068.4,3067.9,4.08435]
[1732145157147,0.04747629,3068.0,3067.9,4.08435]
[1732145157352,3.25903,3068.4,3067.9,4.08435]
[1732145157549,3.3002525,3068.3,3067.6,0.8331]
[1732145157754,0.49997826,3068.3,3067.6,0.8331]
[1732145158041,0.0411025,3068.3,3067.9,3.25948]
[1732145158241,3.25896,3068.5,3067.9,6.844908]
[1732145158442,0.04322696,3068.2,3067.9,6.51896]
[1732145158658,3.25896,3068.5,3067.9,3.25948]
[1732145158903,0.04535156,3068.1,3067.9,3.25947]
[1732145159117,3.25896,3068.5,3067.9,6.51894]
[1732145159253,3.25896,3068.5,3068.0,0.325947]
[1732145159555,3.25896,3068.5,3068.0,3.25943]
[1732145160691,3.25892,3068.5,3067.6,0.8331]
[1732145161047,3.25962,3067.9,3067.3,3.26013]
[1732145161174,3.25962,3067.9,3067.1,3.26033]
[1732145161382,0.7552,3068.0,3067.2,0.06]
[1732145161569,3.25988,3067.6,3067.2,0.06]
[1732145162195,3.25988,3067.6,3067.2,3.32028]
[1732145162400,3.25988,3067.6,3067.2,3.26028]
[1732145162973,4.01526,3067.5,3067.0,4.09358]
[1732145163207,3.25988,3067.6,3067.0,3.26048]
[1732145163364,0.7552,3067.8,3066.8,0.8331]
[1732145163560,4.01486,3067.8,3067.2,3.26023]
[1732145163778,4.01486,3067.8,3067.2,6.52047]
[1732145164807,0.7552,3067.8,3067.2,0.652047]
[1732145164990,0.7557,3068.1,3067.7,3.25971]
[1732145165363,0.7557,3068.1,3067.7,3.25968]
[1732145165559,0.7557,3068.1,3068.0,3.25945]
[1732145165787,6.69849099,3068.6,3067.9,3.25953]
[1732145165788,4.01463,3068.5,3067.9,3.25953]
[1732145165991,4.01463,3068.5,3067.7,3.2597]
[1732145166190,4.01463,3068.5,3067.5,3.25991]
[1732145166191,3.25929,3068.2,3067.5,3.25991]
[1732145166418,0.325929,3068.1,3067.5,3.25991]
[1732145166571,3.71816576,3068.2,3067.6,3.25987]
[1732145166773,4.01513,3068.1,3067.5,3.25991]
[1732145167106,3.30693629,3068.0,3067.5,3.2599]
[1732145167321,4.21796326,3068.0,3067.5,3.2599]
[1732145167505,7.47751326,3068.0,3067.5,3.2599]
[1732145167665,4.21796326,3068.0,3067.3,3.26013]
[1732145167870,3.25958,3067.9,3067.4,3.26008]
[1732145168089,0.04917416,3067.9,3067.4,3.26008]
[1732145168506,0.04917416,3067.9,3067.5,3.25995]
[1732145169102,3.25968,3067.8,3067.3,6.52027]
[1732145169406,0.04912986,3067.7,3067.4,3.26005]
[1732145169779,3.71833576,3068.0,3067.4,3.26005]
[1732145169982,0.04915206,3067.9,3067.5,3.25996]
[1732145170285,0.04915206,3067.9,3067.6,3.25981]
[1732145170661,0.04915206,3067.9,3067.8,3.25966]
[1732145170915,0.7557,3068.1,3067.8,3.25966]
[1732145171205,0.7557,3068.1,3067.9,3.25954]
[1732145171422,0.7592,3068.3,3067.9,3.25954]
[1732145171563,1.45204434,3068.3,3068.0,3.25941]
[1732145171768,0.7592,3068.3,3068.0,6.51879]
[1732145172069,0.7592,3068.5,3068.0,6.51873]
[1732145172267,0.7592,3068.5,3068.1,3.25933]
[1732145172520,0.7592,3068.5,3068.0,3.25935]
[1732145172810,0.7592,3068.5,3068.0,6.51873]
[1732145173019,1.27665763,3068.5,3068.0,6.51873]
[1732145173214,1.27665763,3068.5,3068.2,3.25917]
[1732145173378,1.23157576,3068.7,3068.2,6.51835]
[1732145173783,1.23157576,3068.7,3068.3,3.25908]
[1732145175509,1.23157576,3068.7,3068.2,3.25917]
[1732145175714,3.25883,3068.6,3068.1,0.7675]
[1732145175863,3.71770576,3068.6,3068.0,6.51876]
[1732145176060,4.57788952,3068.6,3068.0,3.25936]
[1732145176310,3.25906,3068.4,3067.6,0.8237]
[1732145176494,5.00705389,3068.6,3068.0,3.25937]
[1732145176805,0.66325857,3068.5,3068.0,3.25937]
[1732145177197,3.92217857,3068.5,3068.0,3.25937]
[1732145179981,0.45887576,3068.6,3068.2,3.25922]
[1732145180182,0.7727,3068.7,3068.2,3.25922]
[1732145180509,4.83839629,3068.7,3068.2,3.25922]
[1732145182212,0.03472995,3068.6,3068.1,3.25927]
[1732145182417,3.25892,3068.5,3068.0,7.29558]
[1732145182580,3.25892,3068.5,3068.0,4.03619]
[1732145182912,0.03897818,3068.4,3068.1,3.25931]
[1732145183223,0.45887576,3068.6,3068.1,3.25931]
[1732145183374,0.45887576,3068.6,3068.2,3.25919]
[1732145183574,0.0411025,3068.3,3068.2,3.25919]
[1732145183774,0.45887576,3068.6,3068.2,3.25919]
[1732145184312,0.036854,3068.5,3068.3,3.25912]
[1732145184518,0.036854,3068.5,3068.2,3.25919]
[1732145184884,3.25865,3068.8,3068.2,3.25919]
[1732145185101,0.03897818,3068.4,3068.3,3.25912]
[1732145185301,4.11029573,3068.8,3068.3,3.25912]
[1732145185514,0.03897818,3068.4,3068.3,3.25912]
[1732145185712,3.25865,3068.8,3068.3,3.25912]
[1732145185872,0.03897818,3068.4,3068.3,3.25912]
[1732145186078,3.25865,3068.8,3068.3,3.25912]
[1732145186273,0.03897818,3068.4,3068.3,3.25912]
[1732145186508,7.29669288,3068.9,3068.3,3.25912]
[1732145186716,0.03897818,3068.4,3068.3,3.25912]
[1732145186916,3.25855,3068.9,3068.3,3.25912]
[1732145187117,0.03897818,3068.4,3068.3,3.25912]
[1732145187291,3.25855,3068.9,3068.3,3.25912]
[1732145187491,0.03897818,3068.4,3068.3,3.25912]
[1732145187686,4.2295571,3069.0,3068.5,3.25884]
[1732145188327,0.74878871,3068.9,3068.5,3.25884]
[1732145188779,0.74878871,3068.9,3068.5,6.5177]
[1732145189121,0.74878871,3068.9,3068.5,3.25884]
[1732145189289,4.2295571,3069.0,3068.6,3.25881]